Workbook

Sheet Kalibrierung
A1: Calibration of the iSpindel | F1: Plato Formel: | H1: 0.004636955*tilt^2 - 0.059010154*tilt - 0.062054841
A3: Measured Angle (°) | B3: Measured SG | C3: Measured °Plato | D3: Deviation °
A4: 25.7 | B4: 1.001 | C4: =(-1*616.868)+(1111.14*Kalibrierung!B4)-(630.272*Kalibrierung!B4^2)+(135.997*Kalibrierung!B4^3) -> 0.255364855 | D4: =IF( Table1[[#This Row],[Measured SG]] <> "", Table1[[#This Row],[Measured °Plato]] - ( 0.004636955 * Table1[[#This Row],[Measured Angle (°)]] * Table1[[#This Row],[Measured Angle (°)]] - 0.059010154 * Table1[[#This Row],[Measured Angle (°)]] - 0.062054841 ),"") -> -1.228681754
A5: 27.7 | B5: 1.004802466 | C5: =(-1*616.868)+(1111.14*Kalibrierung!B5)-(630.272*Kalibrierung!B5^2)+(135.997*Kalibrierung!B5^3) -> 1.233743742 | D5: =IF( Table1[[#This Row],[Measured SG]] <> "", Table1[[#This Row],[Measured °Plato]] - ( 0.004636955 * Table1[[#This Row],[Measured Angle (°)]] * Table1[[#This Row],[Measured Angle (°)]] - 0.059010154 * Table1[[#This Row],[Measured Angle (°)]] - 0.062054841 ),"") -> -0.6275093535
A6: 31.7 | B6: 1.011395635 | C6: =(-1*616.868)+(1111.14*Kalibrierung!B6)-(630.272*Kalibrierung!B6^2)+(135.997*Kalibrierung!B6^3) -> 2.915098811 | D6: =IF( Table1[[#This Row],[Measured SG]] <> "", Table1[[#This Row],[Measured °Plato]] - ( 0.004636955 * Table1[[#This Row],[Measured Angle (°)]] * Table1[[#This Row],[Measured Angle (°)]] - 0.059010154 * Table1[[#This Row],[Measured Angle (°)]] - 0.062054841 ),"") -> 0.1881458238
A7: 35.7 | B7: 1.016944426 | C7: =(-1*616.868)+(1111.14*Kalibrierung!B7)-(630.272*Kalibrierung!B7^2)+(135.997*Kalibrierung!B7^3) -> 4.315450116 | D7: =IF( Table1[[#This Row],[Measured SG]] <> "", Table1[[#This Row],[Measured °Plato]] - ( 0.004636955 * Table1[[#This Row],[Measured Angle (°)]] * Table1[[#This Row],[Measured Angle (°)]] - 0.059010154 * Table1[[#This Row],[Measured Angle (°)]] - 0.062054841 ),"") -> 0.5744146773
A8: 37.7 | B8: 1.01944142 | C8: =(-1*616.868)+(1111.14*Kalibrierung!B8)-(630.272*Kalibrierung!B8^2)+(135.997*Kalibrierung!B8^3) -> 4.941282648 | D8: =IF( Table1[[#This Row],[Measured SG]] <> "", Table1[[#This Row],[Measured °Plato]] - ( 0.004636955 * Table1[[#This Row],[Measured Angle (°)]] * Table1[[#This Row],[Measured Angle (°)]] - 0.059010154 * Table1[[#This Row],[Measured Angle (°)]] - 0.062054841 ),"") -> 0.637562523
A9: 41.7 | B9: 1.024109085 | C9: =(-1*616.868)+(1111.14*Kalibrierung!B9)-(630.272*Kalibrierung!B9^2)+(135.997*Kalibrierung!B9^3) -> 6.104001464 | D9: =IF( Table1[[#This Row],[Measured SG]] <> "", Table1[[#This Row],[Measured °Plato]] - ( 0.004636955 * Table1[[#This Row],[Measured Angle (°)]] * Table1[[#This Row],[Measured Angle (°)]] - 0.059010154 * Table1[[#This Row],[Measured Angle (°)]] - 0.062054841 ),"") -> 0.5636250473
A10: 39.3 | B10: 1.021347538 | C10: =(-1*616.868)+(1111.14*Kalibrierung!B10)-(630.272*Kalibrierung!B10^2)+(135.997*Kalibrierung!B10^3) -> 5.417221466 | D10: =IF( Table1[[#This Row],[Measured SG]] <> "", Table1[[#This Row],[Measured °Plato]] - ( 0.004636955 * Table1[[#This Row],[Measured Angle (°)]] * Table1[[#This Row],[Measured Angle (°)]] - 0.059010154 * Table1[[#This Row],[Measured Angle (°)]] - 0.062054841 ),"") -> 0.6366447308
A11: 41.3 | B11: 1.023654221 | C11: =(-1*616.868)+(1111.14*Kalibrierung!B11)-(630.272*Kalibrierung!B11^2)+(135.997*Kalibrierung!B11^3) -> 5.991102928 | D11: =IF( Table1[[#This Row],[Measured SG]] <> "", Table1[[#This Row],[Measured °Plato]] - ( 0.004636955 * Table1[[#This Row],[Measured Angle (°)]] * Table1[[#This Row],[Measured Angle (°)]] - 0.059010154 * Table1[[#This Row],[Measured Angle (°)]] - 0.062054841 ),"") -> 0.5810693552
A12: 43.3 | B12: 1.025919151 | C12: =(-1*616.868)+(1111.14*Kalibrierung!B12)-(630.272*Kalibrierung!B12^2)+(135.997*Kalibrierung!B12^3) -> 6.552394768 | D12: =IF( Table1[[#This Row],[Measured SG]] <> "", Table1[[#This Row],[Measured °Plato]] - ( 0.004636955 * Table1[[#This Row],[Measured Angle (°)]] * Table1[[#This Row],[Measured Angle (°)]] - 0.059010154 * Table1[[#This Row],[Measured Angle (°)]] - 0.062054841 ),"") -> 0.4758087171
A13: 45.3 | B13: 1.028188024 | C13: =(-1*616.868)+(1111.14*Kalibrierung!B13)-(630.272*Kalibrierung!B13^2)+(135.997*Kalibrierung!B13^3) -> 7.112485872 | D13: =IF( Table1[[#This Row],[Measured SG]] <> "", Table1[[#This Row],[Measured °Plato]] - ( 0.004636955 * Table1[[#This Row],[Measured Angle (°)]] * Table1[[#This Row],[Measured Angle (°)]] - 0.059010154 * Table1[[#This Row],[Measured Angle (°)]] - 0.062054841 ),"") -> 0.3322517032
A14: 47.3 | B14: 1.030506535 | C14: =(-1*616.868)+(1111.14*Kalibrierung!B14)-(630.272*Kalibrierung!B14^2)+(135.997*Kalibrierung!B14^3) -> 7.682588883 | D14: =IF( Table1[[#This Row],[Measured SG]] <> "", Table1[[#This Row],[Measured °Plato]] - ( 0.004636955 * Table1[[#This Row],[Measured Angle (°)]] * Table1[[#This Row],[Measured Angle (°)]] - 0.059010154 * Table1[[#This Row],[Measured Angle (°)]] - 0.062054841 ),"") -> 0.1616109559
A15: 51.3 | B15: 1.035475256 | C15: =(-1*616.868)+(1111.14*Kalibrierung!B15)-(630.272*Kalibrierung!B15^2)+(135.997*Kalibrierung!B15^3) -> 8.896772358 | D15: =IF( Table1[[#This Row],[Measured SG]] <> "", Table1[[#This Row],[Measured °Plato]] - ( 0.004636955 * Table1[[#This Row],[Measured Angle (°)]] * Table1[[#This Row],[Measured Angle (°)]] - 0.059010154 * Table1[[#This Row],[Measured Angle (°)]] - 0.062054841 ),"") -> -0.2169800049
A16: 57.3 | B16: 1.044443025 | C16: =(-1*616.868)+(1111.14*Kalibrierung!B16)-(630.272*Kalibrierung!B16^2)+(135.997*Kalibrierung!B16^3) -> 11.06228127 | D16: =IF( Table1[[#This Row],[Measured SG]] <> "", Table1[[#This Row],[Measured °Plato]] - ( 0.004636955 * Table1[[#This Row],[Measured Angle (°)]] * Table1[[#This Row],[Measured Angle (°)]] - 0.059010154 * Table1[[#This Row],[Measured Angle (°)]] - 0.062054841 ),"") -> -0.7188500504
A17: 61.3 | B17: 1.05196445 | C17: =(-1*616.868)+(1111.14*Kalibrierung!B17)-(630.272*Kalibrierung!B17^2)+(135.997*Kalibrierung!B17^3) -> 12.85318807 | D17: =IF( Table1[[#This Row],[Measured SG]] <> "", Table1[[#This Row],[Measured °Plato]] - ( 0.004636955 * Table1[[#This Row],[Measured Angle (°)]] * Table1[[#This Row],[Measured Angle (°)]] - 0.059010154 * Table1[[#This Row],[Measured Angle (°)]] - 0.062054841 ),"") -> -0.891674085
A18: 63.3 | B18: 1.056325124 | C18: =(-1*616.868)+(1111.14*Kalibrierung!B18)-(630.272*Kalibrierung!B18^2)+(135.997*Kalibrierung!B18^3) -> 13.88105573 | D18: =IF( Table1[[#This Row],[Measured SG]] <> "", Table1[[#This Row],[Measured °Plato]] - ( 0.004636955 * Table1[[#This Row],[Measured Angle (°)]] * Table1[[#This Row],[Measured Angle (°)]] - 0.059010154 * Table1[[#This Row],[Measured Angle (°)]] - 0.062054841 ),"") -> -0.9013152991
A19: 65.3 | B19: 1.061146701 | C19: =(-1*616.868)+(1111.14*Kalibrierung!B19)-(630.272*Kalibrierung!B19^2)+(135.997*Kalibrierung!B19^3) -> 15.00874324 | D19: =IF( Table1[[#This Row],[Measured SG]] <> "", Table1[[#This Row],[Measured °Plato]] - ( 0.004636955 * Table1[[#This Row],[Measured Angle (°)]] * Table1[[#This Row],[Measured Angle (°)]] - 0.059010154 * Table1[[#This Row],[Measured Angle (°)]] - 0.062054841 ),"") -> -0.8482323122
A20: 69.3 | B20: 1.072355345 | C20: =(-1*616.868)+(1111.14*Kalibrierung!B20)-(630.272*Kalibrierung!B20^2)+(135.997*Kalibrierung!B20^3) -> 17.59496065 | D20: =IF( Table1[[#This Row],[Measured SG]] <> "", Table1[[#This Row],[Measured °Plato]] - ( 0.004636955 * Table1[[#This Row],[Measured Angle (°)]] * Table1[[#This Row],[Measured Angle (°)]] - 0.059010154 * Table1[[#This Row],[Measured Angle (°)]] - 0.062054841 ),"") -> -0.5225108555
A21: 75.3 | B21: 1.093767479 | C21: =(-1*616.868)+(1111.14*Kalibrierung!B21)-(630.272*Kalibrierung!B21^2)+(135.997*Kalibrierung!B21^3) -> 22.40180174 | D21: =IF( Table1[[#This Row],[Measured SG]] <> "", Table1[[#This Row],[Measured °Plato]] - ( 0.004636955 * Table1[[#This Row],[Measured Angle (°)]] * Table1[[#This Row],[Measured Angle (°)]] - 0.059010154 * Table1[[#This Row],[Measured Angle (°)]] - 0.062054841 ),"") -> 0.6153690005
A22: 77.3 | B22: 1.102314086 | C22: =(-1*616.868)+(1111.14*Kalibrierung!B22)-(630.272*Kalibrierung!B22^2)+(135.997*Kalibrierung!B22^3) -> 24.27287521 | D22: =IF( Table1[[#This Row],[Measured SG]] <> "", Table1[[#This Row],[Measured °Plato]] - ( 0.004636955 * Table1[[#This Row],[Measured Angle (°)]] * Table1[[#This Row],[Measured Angle (°)]] - 0.059010154 * Table1[[#This Row],[Measured Angle (°)]] - 0.062054841 ),"") -> 1.189264114
